[Event "1st Goa GM Open 2018"]
[Site "Taleigao"]
[Date "2018.10.17"]
[Round "7"]
[White "Meftahi, Houssem"]
[Black "Jubin Jimmy"]
[Result "0-1"]
[ECO "E11"]
[WhiteElo "2119"]
[BlackElo "2308"]
[Annotator "NA"]
[PlyCount "90"]
[EventDate "2018.10.13"]
[EventType "swiss"]
[EventCountry "IND"]
[SourceTitle "playchess.com"]
[Source "ChessBase"]
[SourceQuality "1"]
[TimeControl "5400+30"]

1. d4 {[%emt 0:00:00]} Nf6 {[%emt 0:00:00]} 2. c4 {[%emt 0:00:07]} e6 {[%emt 0:00:00]} 3. Nf3 {[%emt 0:00:11]} Bb4+ {[%emt 0:00:00]} 4. Nbd2 {[%emt 0:00:05]} O-O {[%emt 0:00:25]} 5. a3 {[%emt 0:00:43]} Be7 {[%emt 0:00:05]} 6. e4 {[%emt 0:00:04]} d6 {[%emt 0:00:03] E11: Bogo-Indian} (6... d5 7. e5 Nfd7 8. Bd3 c5 9. h4 g6 10. O-O Nc6 11. Nb3 dxc4 12. Bxc4 cxd4 13. Re1 a5 14. Bh6 Re8 15. Rc1 Nb6 {1-0 (39) Ding,L (2804)-Saric,I (2689) Batumi 2018}) 7. Be2 {[%emt 0:01:48]} Nbd7 {[%emt 0:00:20]} 8. O-O {[%emt 0:00:57]} e5 {[%emt 0:00:03]} 9. d5 {[%emt 0:10:18]} ({White should try} 9. b4 $11) 9... Nc5 {[%emt 0:01:04]} 10. Qc2 {[%emt 0:00:25]} a5 $1 {[%emt 0:00:02]} 11. b3 {[%emt 0:00:04] LiveBook: 3 Games} Ne8 $146 {[%emt 0:01:02]} ({Predecessor:} 11... Nh5 12. g3 Bh3 13. Re1 f5 14. Bb2 {0-1 (37) Atalik,E (2468)-Kosteniuk,A (2552) Heraklio 2017}) 12. Ne1 {[%emt 0:05:18]} f5 {[%emt 0:00:52]} 13. f3 {[%emt 0:01:56]} fxe4 {[%emt 0:01:22]} 14. fxe4 {[%emt 0:00:14]} Rxf1+ {[%emt 0:06:00]} 15. Nxf1 {[%emt 0:00:47]} a4 {[%emt 0:06:45]} 16. b4 {[%emt 0:00:36]} Nb3 {[%emt 0:00:05]} 17. Rb1 {[%emt 0:01:10]} Nxc1 {[%emt 0:00:58]} 18. Rxc1 {[%emt 0:00:05]} Bg5 {[%emt 0:00:10]} 19. Rd1 {[%emt 0:00:26]} Nf6 {[%emt 0:00:14]} 20. Bf3 {[%emt 0:03:59]} Bd7 {[%emt 0:03:44]} 21. Nd3 {[%emt 0:00:54]} Qe8 {[%emt 0:01:05]} 22. c5 {[%emt 0:04:55]} Bb5 {[%emt 0:01:05]} 23. Kh1 {[%emt 0:03:56]} Qd7 {[%emt 0:05:08]} 24. Ng3 {[%emt 0:14:30]} Rf8 {[%emt 0:01:29]} 25. Nf2 {[%emt 0:02:37]} g6 {[%emt 0:01:46]} 26. Ne2 {[%emt 0:00:16]} Be3 {[%emt 0:04:30]} 27. Nc3 {[%emt 0:01:54]} Bc4 {[%emt 0:03:18]} 28. Re1 {[%emt 0:01:09]} Bd4 $17 {[%emt 0:00:43]} 29. Ncd1 {[%emt 0:08:17]} Bb3 {[%emt 0:02:42]} 30. Qc1 {[%emt 0:00:47]} Kg7 {[%emt 0:02:32]} 31. Ne3 {[%emt 0:03:53]} h5 {[%emt 0:01:40]} 32. Nh3 {[%emt 0:01:15]} Nh7 {[%emt 0:00:57]} 33. Ng1 {[%emt 0:01:28]} Qe7 {[%emt 0:02:40]} 34. c6 {[%emt 0:02:38]} b5 {[%emt 0:05:46]} 35. Qd2 {[%emt 0:05:05]} Ng5 {[%emt 0:03:13]} 36. Qe2 {[%emt 0:00:55]} Rf4 {[%emt 0:04:25]} 37. Qxb5 {[%emt 0:04:21]} Nxe4 {[%emt 0:00:10]} 38. Nh3 {[%emt 0:01:35]} Qh4 {[%emt 0:06:14]} 39. Qe2 {[%emt 0:01:49]} Nc3 {[%emt 0:02:52]} 40. Nxf4 {[%emt 0:04:07]} Nxe2 {[%emt 0:01:50]} 41. Ne6+ {[%emt 0:00:01]} Kh8 {[%emt 0:00:42]} 42. Rxe2 {[%emt 0:00:08]} Bxe3 {[%emt 0:00:14]} 43. g3 {[%emt 0:00:43]} Qc4 {[%emt 0:00:30]} 44. Kg2 {[%emt 0:00:36]} e4 {[%emt 0:01:32]} 45. Rxe3 {[%emt 0:00:56]} exf3+ {[%emt 0:00:02]} 0-1

[Event "1st Goa GM Open 2018"]
[Site "Taleigao"]
[Date "2018.10.17"]
[Round "7"]
[White "Lokesh, N.."]
[Black "Toma, Katarzyna"]
[Result "1/2-1/2"]
[ECO "B35"]
[WhiteElo "2104"]
[BlackElo "2278"]
[Annotator "NA"]
[PlyCount "94"]
[EventDate "2018.10.13"]
[EventType "swiss"]
[EventCountry "IND"]
[SourceTitle "playchess.com"]
[Source "ChessBase"]
[SourceQuality "1"]
[TimeControl "5400+30"]

1. e4 {[%emt 0:04:16]} c5 {[%emt 0:00:00]} 2. Nf3 {[%emt 0:00:40]} Nc6 {[%emt 0:00:00]} 3. Nc3 {[%emt 0:00:04]} g6 {[%emt 0:00:45]} 4. d4 {[%emt 0:06:10]} cxd4 {[%emt 0:00:05]} 5. Nxd4 {[%emt 0:00:05]} Bg7 {[%emt 0:00:04]} 6. Be3 {[%emt 0:00:05]} Nf6 {[%emt 0:00:07]} 7. Bc4 {[%emt 0:00:41]} Qa5 {[%emt 0:01:31]} 8. O-O {[%emt 0:06:33]} O-O {[%emt 0:00:07]} 9. Bb3 {[%emt 0:06:31]} d6 {[%emt 0:00:17]} 10. Nd5 {[%emt 0:12:02]} Re8 {[%emt 0:09:43]} 11. Nxf6+ {[%emt 0:20:11] LiveBook: 12 Games} Bxf6 {[%emt 0:00:08]} 12. Re1 {[%emt 0:11:11]} Bd7 {[%emt 0:02:52]} 13. Nxc6 {[%emt 0:05:24]} Bxc6 $11 {[%emt 0:07:07]} 14. Bd4 {[%emt 0:00:06]} Be5 {[%emt 0:12:49]} 15. c3 {[%emt 0:01:02]} Red8 {[%emt 0:09:09]} 16. Qf3 {[%emt 0:00:56]} e6 {[%emt 0:00:48]} 17. Rad1 {[%emt 0:00:15]} Kg7 {[%emt 0:02:23]} 18. Qe3 {[%emt 0:01:05]} Ba4 {[%emt 0:04:19]} 19. f4 {[%emt 0:12:13]} Bxb3 {[%emt 0:00:10]} 20. axb3 {[%emt 0:00:05]} Bxd4 {[%emt 0:00:31]} 21. Rxd4 {[%emt 0:00:14]} Qb6 {[%emt 0:11:35]} 22. Rb4 {[%emt 0:01:43]} Qxe3+ {[%emt 0:00:22]} 23. Rxe3 {[%emt 0:00:06]} b6 {[%emt 0:00:28]} 24. Rd3 {[%emt 0:00:27]} Kf6 {[%emt 0:01:28]} 25. Rc4 {[%emt 0:00:56]} Ke7 {[%emt 0:06:33]} 26. Rc7+ {[%emt 0:02:17]} Rd7 {[%emt 0:00:04]} 27. Rxd7+ {[%emt 0:01:08]} Kxd7 {[%emt 0:00:02]} 28. e5 {[%emt 0:00:06]} d5 {[%emt 0:00:02]} 29. c4 {[%emt 0:00:05]} Rc8 {[%emt 0:00:02]} 30. cxd5 {[%emt 0:03:53]} Rc1+ {[%emt 0:00:06]} 31. Kf2 {[%emt 0:00:03]} Rc2+ {[%emt 0:00:04]} 32. Kf3 {[%emt 0:00:05]} exd5 {[%emt 0:00:47]} 33. Rxd5+ {[%emt 0:00:07]} Ke7 {[%emt 0:00:21]} 34. b4 {[%emt 0:03:26]} Rxb2 {[%emt 0:01:07]} 35. b5 {[%emt 0:00:54]} h5 {[%emt 0:03:32]} 36. h4 {[%emt 0:01:53]} Rb3+ {[%emt 0:03:38]} 37. Ke4 {[%emt 0:00:42]} Rb2 {[%emt 0:02:41]} 38. Kf3 {[%emt 0:00:17]} Rc2 {[%emt 0:04:21]} 39. Rd4 {[%emt 0:00:14]} Rc5 {[%emt 0:01:34]} 40. Ra4 {[%emt 0:00:08]} Rxb5 {[%emt 0:00:16]} 41. Rxa7+ {[%emt 0:00:03]} Ke6 {[%emt 0:00:04]} 42. Rb7 {[%emt 0:01:06]} Rb3+ {[%emt 0:03:09]} 43. Ke4 {[%emt 0:00:07]} Rb4+ {[%emt 0:00:12]} 44. Kf3 {[%emt 0:00:08]} f6 {[%emt 0:02:29]} 45. exf6 {[%emt 0:01:05]} Kxf6 {[%emt 0:00:04]} 46. Rb8 {[%emt 0:00:44]} Ke6 {[%emt 0:04:38]} 47. Rg8 {[%emt 0:00:19]} Kf6 {[%emt 0:02:01] Ke4 Ke5+} 1/2-1/2

[Event "1st Goa GM Open 2018"]
[Site "Taleigao"]
[Date "2018.10.17"]
[Round "7"]
[White "Nayak Rajesh"]
[Black "Patil, Pratik"]
[Result "0-1"]
[ECO "B40"]
[WhiteElo "2084"]
[BlackElo "2280"]
[Annotator "NA"]
[PlyCount "74"]
[EventDate "2018.10.13"]
[EventType "swiss"]
[EventCountry "IND"]
[SourceTitle "playchess.com"]
[Source "ChessBase"]
[SourceQuality "1"]
[TimeControl "5400+30"]

1. e4 {[%emt 0:04:59]} c5 {[%emt 0:00:00]} 2. Nf3 {[%emt 0:00:42]} e6 {[%emt 0:00:00]} 3. d3 {[%emt 0:02:51]} Nc6 {[%emt 0:00:22]} 4. g3 {[%emt 0:00:24]} d6 {[%emt 0:06:26]} 5. Bg2 {[%emt 0:06:49]} Nf6 {[%emt 0:00:04]} 6. O-O {[%emt 0:00:43]} Be7 {[%emt 0:00:02]} 7. Nbd2 {[%emt 0:02:38]} O-O {[%emt 0:00:12]} 8. Re1 {[%emt 0:03:42]} Qc7 {[%emt 0:01:24] LiveBook: 18 Games} 9. Nf1 {[%emt 0:05:10]} Rb8 {[%emt 0:02:26]} 10. h4 {[%emt 0:14:14]} b5 {[%emt 0:06:05]} 11. Ne3 {[%emt 0:03:42]} Nd4 {[%emt 0:09:22]} 12. Nh2 {[%emt 0:01:43]} b4 {[%emt 0:02:44]} 13. f4 {[%emt 0:06:47]} Bb7 {[%emt 0:02:06]} 14. c3 $11 {[%emt 0:12:51]} bxc3 {[%emt 0:06:05]} 15. bxc3 {[%emt 0:00:13]} Nb5 {[%emt 0:00:01]} 16. Bd2 {[%emt 0:04:24]} d5 {[%emt 0:01:53]} 17. e5 {[%emt 0:11:27]} Nd7 {[%emt 0:00:24]} 18. Neg4 {[%emt 0:00:12]} Na3 {[%emt 0:07:28]} 19. Nf3 {[%emt 0:02:06]} c4 {[%emt 0:02:48]} 20. d4 {[%emt 0:00:14]} Bc6 {[%emt 0:00:08]} 21. Ne3 {[%emt 0:00:48]} Qa5 {[%emt 0:02:14]} 22. f5 {[%emt 0:02:02]} Ba4 {[%emt 0:01:26]} 23. Qe2 {[%emt 0:03:54]} Nc2 {[%emt 0:01:44]} 24. fxe6 {[%emt 0:00:55]} Nxe1 {[%emt 0:06:17]} 25. exf7+ {[%emt 0:00:20]} Rxf7 {[%emt 0:00:14]} 26. Rxe1 {[%emt 0:00:08]} Nf8 {[%emt 0:07:35]} 27. e6 {[%emt 0:00:21]} Rf6 {[%emt 0:03:03]} 28. Ne5 {[%emt 0:00:13]} Rd8 {[%emt 0:02:04]} 29. Nf7 Bc6 {[%emt 0:00:49]} 30. Nxd8 {[%emt 0:03:59]} Qxd8 {[%emt 0:00:22]} 31. Qh5 {[%emt 0:01:17]} Qc7 {[%emt 0:09:13]} 32. Nf5 {[%emt 0:01:55]} g6 {[%emt 0:01:03]} 33. Nxe7+ {[%emt 0:00:20]} Qxe7 {[%emt 0:00:01]} 34. Qg5 {[%emt 0:00:32]} Nxe6 {[%emt 0:04:01]} 35. Bxd5 {[%emt 0:00:20]} Qd6 {[%emt 0:00:05]} 36. Bxc6 {[%emt 0:00:52]} Nxg5 {[%emt 0:00:06]} 37. hxg5 {[%emt 0:00:42]} Qxg3+ 0-1

[Event "1st Goa GM Open 2018"]
[Site "Taleigao"]
[Date "2018.10.17"]
[Round "7"]
[White "Sudhanshu Ranjan"]
[Black "Deshmukh, Anup"]
[Result "0-1"]
[ECO "E10"]
[WhiteElo "2060"]
[BlackElo "2267"]
[Annotator "NA"]
[PlyCount "130"]
[EventDate "2018.10.13"]
[EventType "swiss"]
[EventCountry "IND"]
[SourceTitle "playchess.com"]
[Source "ChessBase"]
[SourceQuality "1"]
[TimeControl "5400+30"]

1. d4 {[%emt 0:00:00]} Nf6 {[%emt 0:00:00]} 2. c4 {[%emt 0:00:00]} c5 {[%emt 0:00:00]} 3. d5 {[%emt 0:00:00]} b5 {[%emt 0:00:36]} 4. Nf3 {[%emt 0:00:00]} e6 {[%emt 0:00:41]} 5. dxe6 {[%emt 0:00:00]} fxe6 {[%emt 0:00:07]} 6. cxb5 {[%emt 0:00:00]} d5 {[%emt 0:00:06]} 7. e3 {[%emt 0:00:11]} Bd6 {[%emt 0:01:19] LiveBook: 77 Games} 8. Nc3 {[%emt 0:03:42]} O-O {[%emt 0:00:29]} 9. e4 {[%emt 0:08:32]} Bc7 {[%emt 0:13:00]} 10. Bd3 {[%emt 0:07:18]} Nbd7 {[%emt 0:03:31]} 11. O-O {[%emt 0:10:49]} Bb7 {[%emt 0:12:46]} 12. exd5 {[%emt 0:19:47]} exd5 {[%emt 0:00:19]} 13. Ne2 $11 {[%emt 0:03:42]} h6 {[%emt 0:16:48]} 14. Bf4 {[%emt 0:02:49]} Nh5 {[%emt 0:02:03]} 15. Bxc7 {[%emt 0:03:25]} Qxc7 {[%emt 0:00:03]} 16. Ng3 {[%emt 0:00:43]} Nf4 {[%emt 0:00:17]} 17. Re1 {[%emt 0:02:36]} Rf7 {[%emt 0:05:09]} 18. Bf1 {[%emt 0:04:39]} Raf8 {[%emt 0:00:23]} 19. Rc1 {[%emt 0:01:04]} Qb6 {[%emt 0:06:55]} 20. Rc2 {[%emt 0:04:57]} Kh8 {[%emt 0:07:56]} 21. a4 {[%emt 0:01:31]} Qa5 {[%emt 0:05:16]} 22. b3 {[%emt 0:04:18]} Qb4 {[%emt 0:01:34]} 23. Rd2 {[%emt 0:02:07]} d4 {[%emt 0:05:02]} 24. Ne5 {[%emt 0:08:12]} Nxe5 {[%emt 0:00:54]} 25. Rxe5 {[%emt 0:00:03]} Bd5 {[%emt 0:06:09]} 26. Rb2 {[%emt 0:01:04]} d3 {[%emt 0:00:47]} 27. Rxd5 {[%emt 0:03:37]} Nxd5 {[%emt 0:00:56]} 28. Qxd3 {[%emt 0:00:05]} Nb6 {[%emt 0:02:45]} 29. Qd2 {[%emt 0:00:25]} Qa3 {[%emt 0:01:11]} 30. Ne4 {[%emt 0:00:37]} Rd7 {[%emt 0:01:04]} 31. Qc2 {[%emt 0:00:02]} Rfd8 {[%emt 0:00:45]} 32. Rb1 {[%emt 0:01:08]} Rd5 {[%emt 0:02:09]} 33. Rc1 {[%emt 0:00:41]} Qb4 {[%emt 0:00:43]} 34. f3 {[%emt 0:01:31]} Re5 {[%emt 0:02:04]} 35. Qc3 {[%emt 0:00:19]} Qxc3 {[%emt 0:01:06]} 36. Rxc3 {[%emt 0:00:03]} Rd1 {[%emt 0:00:39]} 37. Rxc5 {[%emt 0:00:41]} Rxc5 {[%emt 0:00:23]} 38. Nxc5 {[%emt 0:00:01]} Rc1 {[%emt 0:00:22]} 39. Ne6 {[%emt 0:02:18]} Nd5 {[%emt 0:01:06]} 40. Kf2 {[%emt 0:00:49]} Rc2+ {[%emt 0:00:02]} 41. Kg3 {[%emt 0:02:38]} Ne3 {[%emt 0:00:17]} 42. Bd3 {[%emt 0:00:15]} Rb2 {[%emt 0:00:50]} 43. Nc5 {[%emt 0:01:34]} Rxg2+ {[%emt 0:01:07]} 44. Kf4 {[%emt 0:00:06]} Nd5+ {[%emt 0:00:12]} 45. Ke5 {[%emt 0:00:28]} Nb4 {[%emt 0:00:04]} 46. h4 {[%emt 0:01:00]} h5 {[%emt 0:01:04]} 47. Be4 {[%emt 0:00:03]} Ra2 {[%emt 0:01:07]} 48. Na6 {[%emt 0:00:24]} Nxa6 {[%emt 0:00:57]} 49. bxa6 {[%emt 0:00:01]} Rb2 {[%emt 0:00:08]} 50. Bd5 {[%emt 0:00:11]} g6 {[%emt 0:00:23]} 51. f4 {[%emt 0:00:12]} Kg7 {[%emt 0:00:03]} 52. Bc4 {[%emt 0:00:16]} Rb1 {[%emt 0:00:26]} 53. Kd6 {[%emt 0:00:39]} Kf6 {[%emt 0:00:15]} 54. Kc6 {[%emt 0:00:05]} Re1 {[%emt 0:00:05]} 55. a5 {[%emt 0:00:35]} Re4 {[%emt 0:00:20]} 56. Kc5 {[%emt 0:01:09]} Ke7 {[%emt 0:00:22]} 57. b4 {[%emt 0:00:13]} Kd7 {[%emt 0:00:12]} 58. b5 {[%emt 0:00:19]} Kc7 {[%emt 0:00:10]} 59. b6+ {[%emt 0:02:28]} Kb8 {[%emt 0:00:06]} 60. bxa7+ {[%emt 0:00:40]} Kxa7 {[%emt 0:00:08]} 61. Bd3 {[%emt 0:00:27]} Rxf4 {[%emt 0:00:07]} 62. Bxg6 {[%emt 0:00:02]} Rxh4 {[%emt 0:00:14]} 63. Kd6 {[%emt 0:00:46]} Rh1 {[%emt 0:01:31]} 64. Ke5 {[%emt 0:00:40]} h4 {[%emt 0:00:15]} 65. Kf4 {[%emt 0:00:06]} Rf1+ {[%emt 0:00:16]} 0-1